[Event "Top 12 FRA-chT 2017"]
[Site "Chartres"]
[Date "2017.05.25"]
[Round "8"]
[White "Rodon, Gurvan"]
[Black "Pile, Richard"]
[Result "0-1"]
[ECO "E12"]
[WhiteElo "2047"]
[BlackElo "2391"]
[Annotator "NA"]
[PlyCount "134"]
[EventDate "2017.??.??"]
[EventType "team-tourn"]
[EventCountry "FRA"]
[SourceTitle "playchess.com"]
[Source "ChessBase"]
[SourceQuality "1"]
[WhiteTeam "Lisieux"]
[BlackTeam "Grasse Echecs"]
[TimeControl "40/5400+30:1800+30"]

1. d4 {[%emt 0:09:06]} Nf6 {[%emt 0:00:05]} 2. c4 {[%emt 0:00:07]} e6 {[%emt 0:00:05]} 3. Nf3 {[%emt 0:00:06]} b6 {[%emt 0:00:30]} 4. a3 {[%emt 0:00:06]} Bb7 {[%emt 0:00:44]} 5. Nc3 {[%emt 0:00:07]} d5 {[%emt 0:02:14]} 6. cxd5 {[%emt 0:00:08]} exd5 {[%emt 0:00:06]} 7. g3 {[%emt 0:02:26]} Be7 {[%emt 0:00:54]} 8. Bh3 {[%emt 0:06:21]} O-O {[%emt 0:00:41]} 9. O-O {[%emt 0:00:07]} c5 {[%emt 0:06:44]} 10. Ne5 {[%emt 0:14:05]} Nc6 {[%emt 0:02:54]} 11. Nxc6 {[%emt 0:02:55]} Bxc6 {[%emt 0:00:04]} 12. Be3 {[%emt 0:08:28]} h6 {[%emt 0:08:40]} 13. Rc1 {[%emt 0:01:31]} c4 {[%emt 0:00:17]} 14. Qd2 {[%emt 0:31:10]} Re8 {[%emt 0:05:38]} 15. f3 {[%emt 0:07:31]} b5 {[%emt 0:04:34]} 16. Bf5 {[%emt 0:01:13]} a5 {[%emt 0:08:24]} 17. Bb1 {[%emt 0:00:10]} b4 {[%emt 0:02:21]} 18. axb4 {[%emt 0:00:12]} axb4 {[%emt 0:00:06]} 19. Nd1 {[%emt 0:00:08]} Bb5 {[%emt 0:26:26]} 20. Rf2 {[%emt 0:02:30]} Nh7 {[%emt 0:10:17]} 21. g4 {[%emt 0:07:32]} Ra6 {[%emt 0:05:14]} 22. Rg2 {[%emt 0:00:50]} Re6 {[%emt 0:04:30]} 23. Bf5 {[%emt 0:00:54]} Rxe3 {[%emt 0:03:54]} 24. Nxe3 {[%emt 0:00:34]} Bg5 {[%emt 0:00:58]} 25. Bxh7+ {[%emt 0:00:37]} Kh8 {[%emt 0:03:48]} 26. Be4 {[%emt 0:00:32]} dxe4 {[%emt 0:00:13]} 27. f4 {[%emt 0:00:08]} Bxf4 {[%emt 0:00:08]} 28. Rf1 {[%emt 0:00:37]} Qg5 {[%emt 0:01:59]} 29. Rxf4 {[%emt 0:01:40]} Qxf4 {[%emt 0:00:05]} 30. Rf2 {[%emt 0:00:07]} Qc7 {[%emt 0:01:22]} 31. Qxb4 {[%emt 0:00:07]} Rb8 {[%emt 0:00:08]} 32. Nf5 {[%emt 0:01:53]} Ba6 {[%emt 0:00:26]} 33. Qd2 {[%emt 0:00:27]} Qb6 {[%emt 0:01:14]} 34. e3 {[%emt 0:00:16]} Bc8 {[%emt 0:00:36]} 35. Ng3 {[%emt 0:01:12]} Bxg4 {[%emt 0:00:27]} 36. Nxe4 {[%emt 0:00:06]} Qg6 {[%emt 0:00:29]} 37. Ng3 {[%emt 0:00:08]} Rb3 {[%emt 0:00:09]} 38. Qc2 {[%emt 0:01:31]} Rxe3 {[%emt 0:00:31]} 39. Qxg6 {[%emt 0:01:10]} fxg6 {[%emt 0:00:06]} 40. Rd2 {[%emt 0:00:27]} Kg8 {[%emt 0:30:46]} 41. Kf2 {[%emt 0:01:39]} Rf3+ {[%emt 0:00:00]} 42. Kg2 {[%emt 0:00:14]} Rb3 {[%emt 0:00:00]} 43. h3 {[%emt 0:17:06]} Bf3+ {[%emt 0:00:00]} 44. Kf2 {[%emt 0:00:58]} Bd5 {[%emt 0:00:00]} 45. Nf1 {[%emt 0:03:17]} Rxh3 {[%emt 0:00:00]} 46. Ne3 {[%emt 0:01:00]} Rh2+ {[%emt 0:00:00]} 47. Ke1 {[%emt 0:00:13]} Rxd2 {[%emt 0:00:00]} 48. Kxd2 {[%emt 0:00:08]} Bf7 {[%emt 0:00:00]} 49. d5 {[%emt 0:03:05]} h5 {[%emt 0:00:00]} 50. Kc3 {[%emt 0:00:08]} h4 {[%emt 0:00:00]} 51. Kxc4 {[%emt 0:00:16]} h3 {[%emt 0:00:00]} 52. Ng4 {[%emt 0:00:18]} Kf8 {[%emt 0:00:00]} 53. Kc5 {[%emt 0:00:47]} Ke7 {[%emt 0:00:00]} 54. Kc6 {[%emt 0:00:19]} Kd8 {[%emt 0:00:00]} 55. b4 {[%emt 0:06:26]} Be8+ {[%emt 0:00:00]} 56. Kc5 Bd7 {[%emt 0:00:00]} 57. Nf2 {[%emt 0:01:33]} h2 {[%emt 0:00:00]} 58. b5 {[%emt 0:00:47]} Kc7 {[%emt 0:00:00]} 59. d6+ {[%emt 0:01:20]} Kb7 {[%emt 0:00:00]} 60. Nh1 {[%emt 0:00:16]} Bh3 {[%emt 0:00:00]} 61. Nf2 {[%emt 0:00:39]} Kc8 {[%emt 0:00:00]} 62. b6 {[%emt 0:00:20]} Bg2 {[%emt 0:00:00]} 63. Kb5 {[%emt 0:00:23]} Kd7 {[%emt 0:00:00]} 64. Ka6 {[%emt 0:00:58]} h1=Q {[%emt 0:00:00]} 65. Nxh1 {[%emt 0:00:06]} Bxh1 {[%emt 0:00:00]} 66. b7 {[%emt 0:00:05]} Bxb7+ {[%emt 0:00:00]} 67. Kxb7 {[%emt 0:00:05]} Kxd6 {[%emt 0:00:00]} 0-1

[Event "Top 12 FRA-chT 2017"]
[Site "Chartres"]
[Date "2017.05.26"]
[Round "9"]
[White "Shirazi, Kamran"]
[Black "Heinz, Timothee"]
[Result "1/2-1/2"]
[ECO "D00"]
[WhiteElo "2367"]
[BlackElo "2353"]
[Annotator "NA"]
[PlyCount "112"]
[EventDate "2017.??.??"]
[EventType "team-tourn"]
[EventCountry "FRA"]
[SourceTitle "playchess.com"]
[Source "ChessBase"]
[SourceQuality "1"]
[WhiteTeam "Tremblay En France"]
[BlackTeam "Strasbourg"]
[TimeControl "40/5400+30:1800+30"]

1. d4 {[%emt 0:00:21]} d5 {[%emt 0:00:07]} 2. Bg5 {[%emt 0:00:19]} Nf6 {[%emt 0:00:06]} 3. Bxf6 {[%emt 0:08:07]} exf6 {[%emt 0:00:17]} 4. e3 {[%emt 0:00:14]} c6 {[%emt 0:02:54]} 5. c4 {[%emt 0:00:18]} dxc4 {[%emt 0:00:52]} 6. Bxc4 {[%emt 0:00:05]} Bd6 {[%emt 0:01:14]} 7. Nc3 {[%emt 0:00:29]} f5 {[%emt 0:04:49]} 8. Nf3 {[%emt 0:06:09]} Nd7 {[%emt 0:01:34]} 9. a3 {[%emt 0:00:35]} Qe7 {[%emt 0:03:46]} 10. O-O {[%emt 0:00:38]} O-O {[%emt 0:00:58]} 11. Qc2 {[%emt 0:09:58]} Nf6 {[%emt 0:07:26]} 12. Bd3 {[%emt 0:07:53]} g6 {[%emt 0:00:40]} 13. Rfe1 {[%emt 0:00:06]} Be6 {[%emt 0:01:12]} 14. e4 {[%emt 0:27:33]} fxe4 {[%emt 0:00:50]} 15. Nxe4 {[%emt 0:00:03]} Nxe4 {[%emt 0:07:27]} 16. Rxe4 {[%emt 0:00:09]} Qf6 {[%emt 0:05:49]} 17. Ne5 {[%emt 0:00:48]} Rfe8 {[%emt 0:06:10]} 18. Rae1 {[%emt 0:00:37]} Re7 {[%emt 0:12:25]} 19. g3 {[%emt 0:10:15]} Bf5 {[%emt 0:12:28]} 20. R4e3 {[%emt 0:03:57]} Bxd3 {[%emt 0:00:44]} 21. Qxd3 {[%emt 0:00:29]} Qg7 {[%emt 0:06:50]} 22. Nc4 {[%emt 0:00:56]} Rxe3 {[%emt 0:00:07]} 23. Rxe3 {[%emt 0:02:01]} Bf8 {[%emt 0:00:55]} 24. Ne5 {[%emt 0:04:34]} Bd6 {[%emt 0:07:45]} 25. Nc4 {[%emt 0:02:12]} Qf6 {[%emt 0:02:15]} 26. Qb3 {[%emt 0:03:36]} b5 {[%emt 0:00:38]} 27. Rf3 {[%emt 0:01:18]} bxc4 {[%emt 0:00:22]} 28. Rxf6 {[%emt 0:00:06]} cxb3 {[%emt 0:00:02]} 29. Rxd6 {[%emt 0:00:08]} Rc8 {[%emt 0:03:21]} 30. Kf1 {[%emt 0:01:25]} Kf8 {[%emt 0:04:12]} 31. Rd7 {[%emt 0:00:05]} c5 {[%emt 0:05:27]} 32. dxc5 {[%emt 0:00:31]} Rxc5 {[%emt 0:00:02]} 33. Rb7 {[%emt 0:00:10]} a5 {[%emt 0:01:04]} 34. Rxb3 {[%emt 0:00:06]} g5 {[%emt 0:00:59]} 35. Rc3 {[%emt 0:00:48]} Rb5 {[%emt 0:00:47]} 36. b4 {[%emt 0:00:06]} Ke7 {[%emt 0:00:47]} 37. Rc4 {[%emt 0:01:34]} axb4 {[%emt 0:00:31]} 38. axb4 {[%emt 0:02:17]} Ke6 {[%emt 0:00:55]} 39. h4 {[%emt 0:01:28]} h6 {[%emt 0:00:25]} 40. Rc6+ {[%emt 0:01:49]} Ke7 {[%emt 0:30:44]} 41. Rc4 {[%emt 0:34:59]} Re5 {[%emt 0:00:00]} 42. Rc7+ {[%emt 0:00:00]} Ke8 {[%emt 0:00:00]} 43. hxg5 {[%emt 0:00:00]} hxg5 {[%emt 0:00:00]} 44. Rc5 {[%emt 0:00:00]} Re4 {[%emt 0:00:00]} 45. b5 {[%emt 0:00:00]} g4 {[%emt 0:00:00]} 46. Rf5 {[%emt 0:00:00]} Rb4 {[%emt 0:00:00]} 47. Ke2 {[%emt 0:00:00]} Ke7 {[%emt 0:00:00]} 48. Kd3 {[%emt 0:00:00]} Ke6 {[%emt 0:00:00]} 49. Kc3 {[%emt 0:00:00]} Rb1 {[%emt 0:00:00]} 50. Rc5 {[%emt 0:00:00]} f5 {[%emt 0:00:00]} 51. Kc4 {[%emt 0:00:00]} Rb2 {[%emt 0:00:00]} 52. Rc6+ {[%emt 0:00:00]} Kd7 {[%emt 0:00:00]} 53. Rf6 {[%emt 0:00:00]} Rxf2 {[%emt 0:00:00]} 54. b6 {[%emt 0:04:19]} Kc8 {[%emt 0:00:00]} 55. Kd5 {[%emt 0:01:18]} Rf3 {[%emt 0:00:00]} 56. Kc5 Kd7 1/2-1/2

[Event "Top 12 FRA-chT 2017"]
[Site "Chartres"]
[Date "2017.05.26"]
[Round "9"]
[White "Roos, Louis"]
[Black "Aflalo, Sophie"]
[Result "1/2-1/2"]
[ECO "A05"]
[WhiteElo "2346"]
[BlackElo "2135"]
[Annotator "NA"]
[PlyCount "105"]
[EventDate "2017.??.??"]
[EventType "team-tourn"]
[EventCountry "FRA"]
[SourceTitle "playchess.com"]
[Source "ChessBase"]
[SourceQuality "1"]
[WhiteTeam "Strasbourg"]
[BlackTeam "Tremblay-En-France"]
[TimeControl "40/5400+30:1800+30"]

1. Nf3 {[%emt 0:00:35]} Nf6 {[%emt 0:02:20]} 2. d4 {[%emt 0:01:13]} c5 {[%emt 0:01:58]} 3. dxc5 {[%emt 0:02:02]} Na6 {[%emt 0:01:05]} 4. Nc3 {[%emt 0:10:28]} Qa5 {[%emt 0:14:33]} 5. Bd2 {[%emt 0:13:29]} Qc7 {[%emt 0:04:25]} 6. e4 {[%emt 0:06:26]} Nxc5 {[%emt 0:06:23]} 7. e5 {[%emt 0:00:51]} Nfe4 {[%emt 0:04:14]} 8. Nd5 {[%emt 0:03:36]} Qd8 {[%emt 0:05:35]} 9. b4 {[%emt 0:06:15]} Nxd2 {[%emt 0:01:46]} 10. Qxd2 {[%emt 0:00:14]} Ne4 {[%emt 0:09:53]} 11. Qd4 {[%emt 0:07:10]} e6 {[%emt 0:00:52]} 12. Qxe4 {[%emt 0:05:18]} exd5 {[%emt 0:00:10]} 13. Qd4 {[%emt 0:13:09]} Be7 {[%emt 0:12:16]} 14. Bd3 {[%emt 0:03:34]} O-O {[%emt 0:00:09]} 15. O-O {[%emt 0:00:38]} d6 {[%emt 0:01:57]} 16. Qxd5 {[%emt 0:01:52]} dxe5 {[%emt 0:01:10]} 17. Qxe5 {[%emt 0:00:16]} g6 {[%emt 0:03:03]} 18. Rad1 {[%emt 0:00:43]} Bf6 {[%emt 0:00:54]} 19. Qf4 {[%emt 0:00:54]} Qb6 {[%emt 0:00:47]} 20. c4 {[%emt 0:01:31]} Bc3 {[%emt 0:00:15]} 21. a3 {[%emt 0:00:37]} a5 {[%emt 0:07:19]} 22. c5 {[%emt 0:05:31]} Qc6 {[%emt 0:00:34]} 23. Qc4 {[%emt 0:03:39]} axb4 {[%emt 0:00:04]} 24. axb4 {[%emt 0:00:02]} Qf6 {[%emt 0:03:14]} 25. Be4 {[%emt 0:01:08]} Ra4 {[%emt 0:00:26]} 26. Rb1 {[%emt 0:00:16]} Ra7 {[%emt 0:11:44]} 27. b5 {[%emt 0:02:32]} Be6 {[%emt 0:01:06]} 28. Bd5 {[%emt 0:00:11]} Ra4 {[%emt 0:03:02]} 29. Qxa4 {[%emt 0:00:37]} Bxd5 {[%emt 0:00:03]} 30. Qg4 {[%emt 0:00:33]} h5 {[%emt 0:00:28]} 31. Qg5 {[%emt 0:00:48]} Qxg5 {[%emt 0:01:36]} 32. Nxg5 {[%emt 0:00:08]} Rc8 {[%emt 0:00:00]} 33. c6 {[%emt 0:02:30]} bxc6 {[%emt 0:00:25]} 34. b6 {[%emt 0:01:04]} Rb8 {[%emt 0:00:48]} 35. Rfd1 {[%emt 0:02:00]} Bf6 {[%emt 0:01:44]} 36. Nf3 {[%emt 0:01:17]} Ba2 {[%emt 0:00:02]} 37. b7 {[%emt 0:03:13]} Bxb1 {[%emt 0:01:30]} 38. Rxb1 {[%emt 0:00:04]} Kf8 {[%emt 0:00:37]} 39. Nd2 {[%emt 0:00:15]} Ke7 {[%emt 0:00:24]} 40. Nc4 {[%emt 0:00:12]} Kd7 {[%emt 0:31:00]} 41. Na5 {[%emt 0:03:09]} Bc3 {[%emt 0:00:00]} 42. Nxc6 {[%emt 0:04:18]} Kxc6 {[%emt 0:00:00]} 43. Rc1 {[%emt 0:00:09]} Rxb7 {[%emt 0:00:00]} 44. Rxc3+ {[%emt 0:00:08]} Kd5 {[%emt 0:00:00]} 45. h4 {[%emt 0:00:20]} Ke5 {[%emt 0:00:00]} 46. Rc6 {[%emt 0:00:51]} Rb1+ {[%emt 0:00:00]} 47. Kh2 {[%emt 0:00:11]} Rb2 {[%emt 0:00:00]} 48. Kg3 {[%emt 0:00:23]} Rb3+ {[%emt 0:00:00]} 49. f3 {[%emt 0:00:24]} Rb2 {[%emt 0:00:00]} 50. f4+ {[%emt 0:01:25]} Ke4 {[%emt 0:00:00]} 51. Rf6 {[%emt 0:00:17]} Rb3+ {[%emt 0:00:00]} 52. Kh2 {[%emt 0:00:26]} Rb7 {[%emt 0:00:00]} 53. Kg3 {[%emt 0:02:02]} 1/2-1/2

[Event "Top 12 FRA-chT 2017"]
[Site "Chartres"]
[Date "2017.05.26"]
[Round "9"]
[White "Maisuradze, Nino"]
[Black "De Seroux, Camille"]
[Result "1-0"]
[ECO "A46"]
[WhiteElo "2260"]
[BlackElo "2117"]
[Annotator "NA"]
[PlyCount "57"]
[EventDate "2017.??.??"]
[EventType "team-tourn"]
[EventCountry "FRA"]
[SourceTitle "playchess.com"]
[Source "ChessBase"]
[SourceQuality "1"]
[WhiteTeam "Bischwiller"]
[BlackTeam "Grasse Echecs"]
[TimeControl "40/5400+30:1800+30"]

1. d4 {[%emt 0:00:00]} Nf6 {[%emt 0:00:10]} 2. Nf3 {[%emt 0:00:00]} e6 {[%emt 0:00:12]} 3. Bf4 {[%emt 0:00:09]} c5 {[%emt 0:00:47]} 4. e3 {[%emt 0:01:43]} d5 {[%emt 0:00:46]} 5. Nbd2 {[%emt 0:00:46]} Nc6 {[%emt 0:00:54]} 6. c3 {[%emt 0:00:29]} Bd6 {[%emt 0:02:13]} 7. Bg3 {[%emt 0:03:19]} O-O {[%emt 0:01:42]} 8. Bd3 {[%emt 0:02:07]} b6 {[%emt 0:04:35]} 9. Ne5 {[%emt 0:02:25]} Bb7 {[%emt 0:01:52]} 10. f4 {[%emt 0:01:28]} Ne7 {[%emt 0:09:51]} 11. Qb1 {[%emt 0:06:32]} cxd4 {[%emt 0:14:29]} 12. exd4 {[%emt 0:00:36]} Ng6 {[%emt 0:00:32]} 13. O-O {[%emt 0:03:23]} Nh5 {[%emt 0:03:04]} 14. Ndf3 {[%emt 0:17:56]} Qc8 {[%emt 0:15:10]} 15. f5 {[%emt 0:19:35]} Nxe5 {[%emt 0:20:01]} 16. Bxe5 {[%emt 0:03:18]} Bxe5 {[%emt 0:00:57]} 17. Nxe5 {[%emt 0:04:15]} Nf6 {[%emt 0:02:43]} 18. fxe6 {[%emt 0:10:46]} Qxe6 {[%emt 0:08:35]} 19. Bf5 {[%emt 0:03:21]} Qd6 {[%emt 0:01:08]} 20. Qd3 {[%emt 0:00:38]} Ne4 {[%emt 0:04:58]} 21. Qh3 {[%emt 0:06:22]} g6 {[%emt 0:04:20]} 22. Nxf7 {[%emt 0:02:32]} Rxf7 {[%emt 0:01:06]} 23. Be6 {[%emt 0:00:09]} Ng5 {[%emt 0:00:57]} 24. Bxf7+ {[%emt 0:00:06]} Nxf7 {[%emt 0:00:06]} 25. Rxf7 {[%emt 0:00:22]} Kxf7 {[%emt 0:00:13]} 26. Qxh7+ {[%emt 0:00:03]} Ke8 {[%emt 0:00:54]} 27. Re1+ {[%emt 0:01:07]} Kd8 {[%emt 0:00:23]} 28. Qxb7 {[%emt 0:00:44]} Rc8 {[%emt 0:00:05]} 29. Qf7 1-0

[Event "Top 12 FRA-chT 2017"]
[Site "Chartres"]
[Date "2017.05.26"]
[Round "9"]
[White "Congiu, Mathilde"]
[Black "Guerlin Dit De Guer, Clarisse"]
[Result "1-0"]
[ECO "A05"]
[WhiteElo "2248"]
[BlackElo "1278"]
[Annotator "NA"]
[PlyCount "45"]
[EventDate "2017.??.??"]
[EventType "team-tourn"]
[EventCountry "FRA"]
[SourceTitle "playchess.com"]
[Source "ChessBase"]
[SourceQuality "1"]
[WhiteTeam "Bois-Colombes"]
[BlackTeam "Montpellier"]
[TimeControl "40/5400+30:1800+30"]

1. e4 {[%emt 0:00:00]} e6 {[%emt 0:00:03]} 2. d3 {[%emt 0:00:14]} d5 {[%emt 0:00:24]} 3. Nd2 {[%emt 0:00:08]} Nf6 {[%emt 0:00:32]} 4. Ngf3 {[%emt 0:00:15]} Be7 {[%emt 0:00:59]} 5. g3 {[%emt 0:00:15]} O-O {[%emt 0:01:29]} 6. Bg2 {[%emt 0:00:36]} b6 {[%emt 0:05:48]} 7. O-O {[%emt 0:00:33]} Bb7 {[%emt 0:01:01]} 8. e5 {[%emt 0:00:36]} Nfd7 {[%emt 0:00:52]} 9. Re1 {[%emt 0:00:24]} c5 {[%emt 0:00:40]} 10. Nf1 {[%emt 0:00:39]} Re8 {[%emt 0:05:47]} 11. h4 {[%emt 0:01:33]} h6 {[%emt 0:03:21]} 12. N1h2 {[%emt 0:01:33]} Nf8 {[%emt 0:10:50]} 13. h5 {[%emt 0:04:47]} Nbd7 {[%emt 0:04:04]} 14. Bf4 {[%emt 0:03:39]} f6 {[%emt 0:15:36]} 15. Ng4 {[%emt 0:04:47]} Nh7 {[%emt 0:09:55]} 16. c3 {[%emt 0:10:16]} Ng5 {[%emt 0:05:28]} 17. exf6 {[%emt 0:02:02]} Nxf6 {[%emt 0:00:20]} 18. Nfe5 {[%emt 0:08:12]} Nxh5 {[%emt 0:03:17]} 19. Nxh6+ {[%emt 0:00:30]} gxh6 {[%emt 0:04:07]} 20. Qxh5 {[%emt 0:00:28]} Bf6 {[%emt 0:10:20]} 21. Bxg5 {[%emt 0:01:43]} Bxg5 {[%emt 0:01:54]} 22. Qf7+ {[%emt 0:00:00]} Kh8 {[%emt 0:00:31]} 23. Ng6# {[%emt 0:00:16]} 1-0

[Event "Top 12 FRA-chT 2017"]
[Site "Chartres"]
[Date "2017.05.26"]
[Round "9"]
[White "Haussernot, Cecile"]
[Black "Steil-Antoni, Fiona"]
[Result "1/2-1/2"]
[ECO "B07"]
[WhiteElo "2099"]
[BlackElo "2155"]
[Annotator "NA"]
[PlyCount "64"]
[EventDate "2017.??.??"]
[EventType "team-tourn"]
[EventCountry "FRA"]
[SourceTitle "playchess.com"]
[Source "ChessBase"]
[SourceQuality "1"]
[WhiteTeam "Mulhouse Philidor"]
[BlackTeam "Vandoeuvre"]
[TimeControl "40/5400+30:1800+30"]

1. e4 {[%emt 0:00:00]} d6 {[%emt 0:00:05]} 2. d4 {[%emt 0:00:00]} Nf6 {[%emt 0:00:07]} 3. Nc3 {[%emt 0:00:00]} Nbd7 {[%emt 0:00:05]} 4. f4 {[%emt 0:00:12]} e5 {[%emt 0:00:11]} 5. Nf3 {[%emt 0:00:07]} exd4 {[%emt 0:00:07]} 6. Qxd4 {[%emt 0:00:05]} c6 {[%emt 0:00:20]} 7. Be3 {[%emt 0:00:17]} d5 {[%emt 0:00:10]} 8. exd5 {[%emt 0:02:11]} Bc5 {[%emt 0:00:16]} 9. Qd3 {[%emt 0:05:53]} Qe7 {[%emt 0:00:34]} 10. Nd4 {[%emt 0:00:06]} Nb6 {[%emt 0:00:29]} 11. dxc6 {[%emt 0:00:27]} bxc6 {[%emt 0:00:13]} 12. O-O-O {[%emt 0:02:51]} Ba6 {[%emt 0:00:22]} 13. Qd2 {[%emt 0:21:54]} Bxf1 {[%emt 0:00:40]} 14. Bf2 {[%emt 0:00:38]} Nc4 {[%emt 0:17:16]} 15. Qe1 {[%emt 0:01:08]} Bxd4 {[%emt 0:10:57]} 16. Qxe7+ {[%emt 0:08:50]} Kxe7 {[%emt 0:00:11]} 17. Rxd4 {[%emt 0:00:14]} c5 {[%emt 0:04:55]} 18. Rd1 {[%emt 0:00:15]} Bxg2 {[%emt 0:06:39]} 19. Bxc5+ {[%emt 0:00:19]} Ke6 {[%emt 0:01:17]} 20. Rhe1+ {[%emt 0:00:40]} Kf5 {[%emt 0:00:43]} 21. Rd4 {[%emt 0:00:12]} Rhe8 {[%emt 0:30:51]} 22. Rxe8 {[%emt 0:02:02]} Rxe8 {[%emt 0:00:26]} 23. Rxc4 {[%emt 0:00:09]} Re1+ {[%emt 0:06:28]} 24. Kd2 {[%emt 0:00:23]} Rh1 {[%emt 0:00:02]} 25. Bxa7 {[%emt 0:02:27]} Rxh2 {[%emt 0:00:03]} 26. Rc5+ {[%emt 0:00:14]} Kg4 {[%emt 0:02:59]} 27. Rg5+ {[%emt 0:02:15]} Kf3 {[%emt 0:02:19]} 28. Bg1 {[%emt 0:23:42]} Rh1 {[%emt 0:02:32]} 29. Bd4 {[%emt 0:02:04]} Ng4 {[%emt 0:01:13]} 30. Rxg7 {[%emt 0:05:12]} f5 {[%emt 0:04:01]} 31. Ne2 {[%emt 0:02:06]} Bf1 {[%emt 0:01:02]} 32. Nc3 {[%emt 0:10:49]} Rh2+ {[%emt 0:01:26]} 1/2-1/2

[Event "Top 12 FRA-chT 2017"]
[Site "Chartres"]
[Date "2017.05.26"]
[Round "9"]
[White "Blanche, Paul"]
[Black "Bollengier, Andreea"]
[Result "0-1"]
[ECO "E46"]
[WhiteElo "2081"]
[BlackElo "2234"]
[Annotator "NA"]
[PlyCount "92"]
[EventDate "2017.??.??"]
[EventType "team-tourn"]
[EventCountry "FRA"]
[SourceTitle "playchess.com"]
[Source "ChessBase"]
[SourceQuality "1"]
[WhiteTeam "Lisieux"]
[BlackTeam "Nice Alekhine"]
[TimeControl "40/5400+30:1800+30"]

1. d4 {[%emt 0:00:40]} Nf6 {[%emt 0:00:17]} 2. c4 {[%emt 0:00:20]} e6 {[%emt 0:00:07]} 3. Nc3 {[%emt 0:01:30]} Bb4 {[%emt 0:00:24]} 4. e3 {[%emt 0:01:08]} O-O {[%emt 0:00:28]} 5. Nge2 {[%emt 0:02:19]} d5 {[%emt 0:03:10]} 6. a3 {[%emt 0:02:55]} Be7 {[%emt 0:02:48]} 7. Ng3 {[%emt 0:06:41]} c5 {[%emt 0:19:15]} 8. dxc5 {[%emt 0:07:28]} dxc4 {[%emt 0:00:49]} 9. Qxd8 {[%emt 0:12:47]} Rxd8 {[%emt 0:00:09]} 10. Bxc4 {[%emt 0:03:48]} Bxc5 {[%emt 0:06:32]} 11. b4 {[%emt 0:11:27]} Be7 {[%emt 0:00:25]} 12. Bb2 {[%emt 0:00:51]} a6 {[%emt 0:17:41]} 13. O-O {[%emt 0:11:12]} b5 {[%emt 0:02:40]} 14. Be2 {[%emt 0:02:20]} Bb7 {[%emt 0:00:18]} 15. Rfd1 {[%emt 0:01:43]} Nbd7 {[%emt 0:00:34]} 16. Rd2 {[%emt 0:07:42]} Nb6 {[%emt 0:00:59]} 17. Rad1 {[%emt 0:01:22]} Rxd2 {[%emt 0:03:51]} 18. Rxd2 {[%emt 0:00:09]} Rc8 {[%emt 0:00:28]} 19. f3 {[%emt 0:04:34]} Kf8 {[%emt 0:05:46]} 20. Kf2 {[%emt 0:00:30]} g6 {[%emt 0:06:55]} 21. e4 {[%emt 0:04:04]} Nc4 {[%emt 0:05:24]} 22. Bxc4 {[%emt 0:00:35]} bxc4 {[%emt 0:01:30]} 23. Nf1 {[%emt 0:05:39]} Ke8 {[%emt 0:01:13]} 24. Ne3 {[%emt 0:00:41]} Nd7 {[%emt 0:00:32]} 25. Rc2 {[%emt 0:05:28]} a5 {[%emt 0:11:21]} 26. Ncd1 {[%emt 0:02:28]} Ba6 {[%emt 0:03:23]} 27. Bc3 {[%emt 0:01:39]} f5 {[%emt 0:02:39]} 28. exf5 {[%emt 0:00:57]} gxf5 {[%emt 0:00:02]} 29. Nb2 {[%emt 0:00:07]} f4 {[%emt 0:00:20]} 30. Ng4 {[%emt 0:00:07]} h5 {[%emt 0:02:21]} 31. Ne5 {[%emt 0:00:57]} Nxe5 {[%emt 0:00:06]} 32. Bxe5 {[%emt 0:00:03]} axb4 {[%emt 0:00:04]} 33. axb4 {[%emt 0:00:16]} Bxb4 {[%emt 0:00:06]} 34. Bxf4 {[%emt 0:00:30]} c3 {[%emt 0:00:10]} 35. Na4 {[%emt 0:01:33]} Bd3 {[%emt 0:02:00]} 36. Rc1 {[%emt 0:00:05]} c2 {[%emt 0:01:07]} 37. Ke3 {[%emt 0:00:48]} Bb5 {[%emt 0:02:16]} 38. Nb2 {[%emt 0:00:39]} Ba3 {[%emt 0:00:36]} 39. Be5 {[%emt 0:00:22]} Rc5 {[%emt 0:00:34]} 40. Bd4 {[%emt 0:00:42]} Rc8 {[%emt 0:30:35]} 41. f4 {[%emt 0:09:59]} Ke7 {[%emt 0:00:00]} 42. g3 {[%emt 0:03:03]} Be8 {[%emt 0:00:00]} 43. Be5 {[%emt 0:13:10]} Bg6 {[%emt 0:00:00]} 44. Kd2 {[%emt 0:01:19]} Rc5 {[%emt 0:00:00]} 45. Ra1 {[%emt 0:01:30]} Rxe5 {[%emt 0:00:00]} 46. Rxa3 {[%emt 0:00:55]} Re2+ {[%emt 0:00:00]} 0-1

[Event "Top 12 FRA-chT 2017"]
[Site "Chartres"]
[Date "2017.05.26"]
[Round "9"]
[White "Caron, Damien"]
[Black "Dionisi, Thomas"]
[Result "0-1"]
[ECO "A80"]
[WhiteElo "2024"]
[BlackElo "2392"]
[Annotator "NA"]
[PlyCount "96"]
[EventDate "2017.??.??"]
[EventType "team-tourn"]
[EventCountry "FRA"]
[SourceTitle "playchess.com"]
[Source "ChessBase"]
[SourceQuality "1"]
[WhiteTeam "Montpellier"]
[BlackTeam "Bois-Colombes"]
[TimeControl "40/5400+30:1800+30"]

1. d4 {[%emt 0:00:00]} f5 {[%emt 0:00:06]} 2. Nc3 {[%emt 0:00:51]} Nf6 {[%emt 0:00:08]} 3. Bg5 {[%emt 0:00:31]} d5 {[%emt 0:00:04]} 4. f3 {[%emt 0:00:36]} c5 {[%emt 0:02:12]} 5. e3 {[%emt 0:05:55]} Nc6 {[%emt 0:01:26]} 6. Bb5 {[%emt 0:05:13]} e6 {[%emt 0:03:37]} 7. a3 {[%emt 0:03:38]} Be7 {[%emt 0:02:46]} 8. Qd2 {[%emt 0:10:17]} O-O {[%emt 0:01:09]} 9. Nge2 {[%emt 0:09:35]} Qb6 {[%emt 0:03:38]} 10. Bxc6 {[%emt 0:10:42]} Qxc6 {[%emt 0:07:27]} 11. O-O {[%emt 0:01:12]} b6 {[%emt 0:02:27]} 12. Qd3 {[%emt 0:03:48]} Bb7 {[%emt 0:02:46]} 13. Rfb1 {[%emt 0:05:20]} a5 {[%emt 0:07:50]} 14. a4 {[%emt 0:03:04]} Ba6 {[%emt 0:02:15]} 15. Qd1 {[%emt 0:00:21]} Rad8 {[%emt 0:00:24]} 16. Qe1 {[%emt 0:02:35]} Bd6 {[%emt 0:01:44]} 17. Nf4 {[%emt 0:02:23]} h6 {[%emt 0:10:34]} 18. Bxf6 {[%emt 0:03:47]} Rxf6 {[%emt 0:00:05]} 19. Nh5 {[%emt 0:02:38]} Rf7 {[%emt 0:02:19]} 20. f4 {[%emt 0:01:28]} g6 {[%emt 0:04:55]} 21. Ng3 {[%emt 0:01:08]} cxd4 {[%emt 0:00:36]} 22. exd4 {[%emt 0:01:45]} Bxf4 {[%emt 0:00:29]} 23. Nge2 {[%emt 0:02:47]} Bc7 {[%emt 0:03:16]} 24. Qd2 {[%emt 0:01:45]} g5 {[%emt 0:03:18]} 25. Qe3 {[%emt 0:01:48]} Re8 {[%emt 0:12:26]} 26. Qf3 {[%emt 0:02:50]} Bb7 {[%emt 0:02:46]} 27. Nb5 {[%emt 0:01:33]} Bb8 {[%emt 0:00:58]} 28. Qc3 {[%emt 0:00:26]} Qd7 {[%emt 0:04:00]} 29. Qh3 {[%emt 0:00:11]} Kg7 {[%emt 0:00:36]} 30. Ra3 {[%emt 0:00:43]} Bc6 {[%emt 0:00:48]} 31. Rb3 {[%emt 0:00:38]} Rfe7 {[%emt 0:00:59]} 32. Rf1 {[%emt 0:00:33]} Rc8 {[%emt 0:02:07]} 33. c3 {[%emt 0:03:56]} Rf8 {[%emt 0:00:57]} 34. Ng3 {[%emt 0:01:47]} Qe8 {[%emt 0:01:48]} 35. Ne2 {[%emt 0:01:52]} Qg6 {[%emt 0:00:58]} 36. Nc1 {[%emt 0:02:06]} f4 {[%emt 0:03:10]} 37. Qd3 {[%emt 0:00:53]} Qh5 {[%emt 0:00:30]} 38. Qh3 {[%emt 0:01:28]} Qxh3 {[%emt 0:04:27]} 39. gxh3 {[%emt 0:00:04]} Bd7 {[%emt 0:00:05]} 40. Nd3 {[%emt 0:00:25]} e5 {[%emt 0:33:38]} 41. dxe5 {[%emt 0:30:33]} Bxh3 {[%emt 0:01:52]} 42. Rd1 {[%emt 0:00:27]} Bxe5 {[%emt 0:00:00]} 43. Nxe5 {[%emt 0:00:00]} Rxe5 {[%emt 0:00:00]} 44. Nd4 {[%emt 0:00:00]} Bg4 {[%emt 0:00:00]} 45. Rc1 {[%emt 0:00:00]} f3 {[%emt 0:00:00]} 46. Kf2 {[%emt 0:00:00]} Re2+ {[%emt 0:00:00]} 47. Nxe2 {[%emt 0:00:00]} fxe2+ {[%emt 0:00:00]} 48. Kg2 {[%emt 0:00:00]} Rf1 {[%emt 0:00:00]} 0-1